bitfinex/quotes_BTCUSD_20251021
["timestamp","ask_amount","ask_price","bid_price","bid_amount"]
[1761062871459,1.08534523,113480.0,113470.0,0.1142]
[1761062872797,0.34,113480.0,113470.0,0.29045804]
[1761062872998,1.08534523,113480.0,113470.0,0.1142]
[1761062873322,1.08534523,113480.0,113470.0,0.29045804]
[1761062873532,1.08534523,113480.0,113470.0,0.1142]
[1761062873738,1.08534523,113480.0,113470.0,0.263]
[1761062875019,1.08534523,113480.0,113470.0,0.26292]
[1761062875926,1.08534523,113480.0,113470.0,0.26489174]
[1761062876316,1.08534523,113480.0,113470.0,0.26481174]
[1761062877345,1.12152751,113480.0,113470.0,0.15177174]
[1761062877553,1.32438652,113480.0,113470.0,0.00297174]
[1761062878651,1.34335342,113480.0,113470.0,0.00297174]
[1761062879746,1.34335342,113480.0,113470.0,0.00197174]
[1761062880145,1.34435342,113480.0,113470.0,0.00197174]
[1761062880345,0.58906963,113480.0,113470.0,0.32702978]
[1761062880547,0.57010273,113480.0,113470.0,0.32702978]
[1761062880748,0.74534523,113480.0,113470.0,0.15077174]
[1761062881139,0.94824424,113480.0,113470.0,0.15077174]
[1761062881329,1.14052077,113480.0,113470.0,0.15077174]
[1761062881536,1.12152751,113480.0,113470.0,0.15077174]
[1761062882193,1.14052172,113480.0,113470.0,0.15077174]
[1761062882620,0.17627357,113460.0,113450.0,0.00014573]
[1761062882828,0.51630465,113440.0,113430.0,0.0004]
[1761062883018,1.32468867,113440.0,113430.0,0.0004]
[1761062883537,1.21140867,113440.0,113430.0,0.0004]
[1761062883761,1.23490966,113440.0,113430.0,0.0004]
[1761062884593,1.24364616,113440.0,113430.0,0.0004]
[1761062884798,1.13032616,113440.0,113430.0,0.0004]
[1761062885004,1.24372616,113440.0,113430.0,0.0004]
[1761062885209,0.76444244,113440.0,113430.0,0.0004]
[1761062885440,1.36005868,113440.0,113430.0,0.0004]
[1761062886039,1.36005868,113440.0,113430.0,1e-08]
[1761062886165,1.37904996,113440.0,113430.0,1e-08]
[1761062886378,4.39551378,113440.0,113430.0,1e-08]
[1761062886586,4.39551378,113440.0,113420.0,1e-08]
[1761062886587,0.55250247,113430.0,113420.0,1e-08]
[1761062886789,4.21142421,113430.0,113420.0,1e-08]
[1761062886984,4.83598418,113430.0,113420.0,1e-08]
[1761062887236,4.83952051,113430.0,113420.0,1e-08]
[1761062888034,0.51638239,113390.0,113380.0,0.00838357]
[1761062888371,0.51638239,113390.0,113380.0,0.00852881]
[1761062888372,1.32516641,113390.0,113380.0,0.00852881]
[1761062888789,1.35169272,113390.0,113380.0,0.00330599]
[1761062889854,1.23801272,113390.0,113380.0,0.00330599]
[1761062890054,1.35169272,113390.0,113380.0,0.00330599]
[1761062891815,1.23801272,113390.0,113380.0,0.00330599]
[1761062892015,1.35165272,113390.0,113380.0,0.00330599]
[1761062892445,0.78254999,113390.0,113380.0,0.00330599]
[1761062892621,0.66890999,113390.0,113380.0,0.00330599]
[1761062892816,1.35165272,113390.0,113380.0,0.00330599]
[1761062895433,0.29272771,113390.0,113380.0,0.00330599]
[1761062895642,0.74546957,113400.0,113380.0,0.17970394]
[1761062895842,0.56910273,113400.0,113390.0,0.17638239]
[1761062896057,0.56910273,113410.0,113390.0,0.17638239]
[1761062896275,0.56910273,113410.0,113400.0,0.17636684]
[1761062896276,0.17635316,113410.0,113400.0,0.17636684]
[1761062896534,0.74547525,113420.0,113410.0,0.17635129]
[1761062896535,0.02651721,113420.0,113410.0,0.17635129]
[1761062896741,0.18512918,113450.0,113430.0,0.17631721]
[1761062896941,0.18512918,113450.0,113420.0,0.1851385]
[1761062896942,0.17630465,113440.0,113420.0,0.1851385]
[1761062897143,0.29874356,113450.0,113430.0,0.1929522]
[1761062897476,0.74640749,113440.0,113430.0,0.01663201]
[1761062897684,0.75422261,113440.0,113410.0,0.17634429]
[1761062897903,0.30744698,113450.0,113420.0,0.17633574]
[1761062898107,0.34100011,113440.0,113430.0,0.17632019]
[1761062898275,0.29874356,113450.0,113430.0,0.17632019]
[1761062898583,0.29874356,113450.0,113430.0,0.1939522]
[1761062898584,0.17628911,113450.0,113430.0,0.1939522]
[1761062898724,0.17728922,113450.0,113430.0,0.1939522]
[1761062899338,0.74639195,113450.0,113430.0,0.1939522]
[1761062899617,0.75422261,113440.0,113410.0,0.29012953]
[1761062899754,0.75422261,113440.0,113420.0,0.17633402]
[1761062900166,1.08642303,113430.0,113410.0,0.17648953]
[1761062900428,0.51632019,113430.0,113410.0,0.29009653]
[1761062900651,0.34,113430.0,113420.0,0.17633574]
[1761062900874,0.51632019,113430.0,113410.0,0.29009653]
[1761062901137,1.08543847,113420.0,113410.0,0.00014524]
[1761062901332,1.08543847,113420.0,113410.0,0.17649653]
[1761062901560,0.21167143,113460.0,113430.0,0.17631943]
[1761062901765,0.34100011,113450.0,113440.0,0.17630455]
[1761062901979,0.53516489,113450.0,113430.0,0.17631943]
[1761062902183,0.74540738,113440.0,113430.0,0.17631969]
[1761062902369,0.17630465,113440.0,113430.0,0.17631969]
[1761062902888,0.88941638,113440.0,113410.0,0.00014524]
[1761062903004,0.88063224,113420.0,113410.0,0.00014524]
[1761062903220,1.22063224,113420.0,113410.0,0.00014524]
[1761062903454,1.33455224,113420.0,113410.0,0.00014524]
[1761062903909,0.72007475,113420.0,113410.0,0.00014524]
[1761062904198,1.44326896,113420.0,113410.0,0.00014524]
[1761062905570,0.73897246,113420.0,113410.0,0.00014524]
[1761062905818,1.44326896,113420.0,113410.0,0.00014524]
[1761062906461,1.44326896,113420.0,113410.0,0.00211855]
[1761062906661,0.73897246,113420.0,113410.0,0.00211855]
[1761062906862,1.44326896,113420.0,113410.0,0.00211855]
[1761062908477,0.73897246,113420.0,113410.0,0.00211855]
[1761062908685,1.44326896,113420.0,113410.0,0.00211855]
[1761062909342,1.47945124,113420.0,113410.0,0.00211855]
[1761062909780,1.52664965,113420.0,113410.0,0.00211855]
[1761062909999,4.52664965,113420.0,113410.0,1e-08]
[1761062910206,4.52664965,113420.0,113380.0,0.0002]
[1761062910207,0.37618228,113410.0,113380.0,0.0002]
[1761062910406,1.25686117,113390.0,113380.0,0.0002]
[1761062910614,1.36557789,113390.0,113380.0,0.0002]
[1761062911477,1.36557789,113390.0,113380.0,1e-08]
[1761062911478,1.37458359,113390.0,113380.0,1e-08]
[1761062911655,4.42197562,113390.0,113380.0,1e-08]
[1761062911858,3.71767912,113390.0,113380.0,1e-08]
[1761062912063,0.55259579,113370.0,113360.0,0.05]
[1761062912287,0.77535251,113370.0,113360.0,0.05]
[1761062912761,1.47968901,113370.0,113360.0,0.05]
[1761062913197,1.47983425,113370.0,113360.0,0.05]
[1761062913790,0.77553775,113370.0,113360.0,0.05]
[1761062913992,1.48083425,113370.0,113360.0,0.03]
[1761062914996,0.60012424,113370.0,113360.0,0.03]
[1761062915199,0.66245775,113370.0,113360.0,0.03]
[1761062915447,0.02004295,113370.0,113360.0,0.20642907]
[1761062915614,0.02104306,113370.0,113360.0,0.20642907]
[1761062915829,0.00114524,113370.0,113360.0,0.20642907]
[1761062916356,0.03732752,113370.0,113360.0,0.20642907]
[1761062916493,0.00114524,113370.0,113360.0,0.20642907]
[1761062916839,0.00114524,113370.0,113360.0,0.29624808]
[1761062918225,0.00114524,113370.0,113360.0,0.29424808]
[1761062918871,0.00114524,113370.0,113360.0,0.40828808]
[1761062919354,0.00114524,113370.0,113360.0,0.29424808]
[1761062919554,0.00114524,113370.0,113360.0,0.40828808]
[1761062920064,0.74162402,113370.0,113360.0,0.20442907]
[1761062920207,0.03732752,113370.0,113360.0,0.20442907]
[1761062920674,0.03632752,113370.0,113360.0,0.20442907]
[1761062921252,0.03632752,113370.0,113360.0,0.20607465]
[1761062921457,0.00014524,113370.0,113360.0,0.20607465]
[1761062921618,0.00014524,113370.0,113360.0,0.32019465]
[1761062922034,0.74162413,113370.0,113360.0,0.02964558]
[1761062922233,0.03632752,113370.0,113360.0,0.20607465]
[1761062922456,0.03732763,113370.0,113360.0,0.20607465]
[1761062923559,0.21374114,113370.0,113360.0,0.32015465]
[1761062923767,0.03632752,113370.0,113360.0,0.32015465]
[1761062923971,0.03632752,113370.0,113360.0,0.32115465]
[1761062923972,0.03732763,113370.0,113360.0,0.32115465]
[1761062924143,0.03632752,113370.0,113360.0,0.32115465]
[1761062924751,0.03632752,113370.0,113360.0,0.02964558]
[1761062924957,0.21274103,113370.0,113360.0,0.02964558]
[1761062925161,0.03632752,113370.0,113360.0,0.20607465]
[1761062925367,0.03632752,113370.0,113360.0,0.32007465]
[1761062925574,0.21274103,113370.0,113360.0,0.32007465]
[1761062925770,0.03632752,113370.0,113360.0,0.32007465]
[1761062926744,0.03632752,113370.0,113360.0,0.40989366]
[1761062926745,0.00014524,113370.0,113360.0,0.40989366]
[1761062930437,0.17655875,113370.0,113360.0,0.02964558]
[1761062930667,0.88185536,113370.0,113360.0,0.02964558]
[1761062930874,0.88085525,113370.0,113360.0,0.02964558]
[1761062931074,0.17655875,113370.0,113360.0,0.02964558]
[1761062931255,1.33569536,113370.0,113360.0,0.02964558]
[1761062931462,1.33469525,113370.0,113360.0,0.02964558]
[1761062932114,1.42451426,113370.0,113360.0,0.02964558]
[1761062932876,0.61505626,113370.0,113360.0,0.02964558]
[1761062933081,1.43331276,113370.0,113360.0,0.02964558]
[1761062934448,0.72901626,113370.0,113360.0,0.02964558]
[1761062934810,1.43331276,113370.0,113360.0,0.02964558]
[1761062935824,1.46949504,113370.0,113360.0,0.02964558]
[1761062935970,0.67529953,113370.0,113360.0,0.02964558]
[1761062936180,1.37959603,113370.0,113360.0,0.02964558]
[1761062936559,0.55274103,113370.0,113360.0,0.02964558]
[1761062936746,0.00014524,113370.0,113360.0,0.20607465]
[1761062937417,0.03632752,113370.0,113360.0,0.20607465]
[1761062937554,0.00014524,113370.0,113360.0,0.26889366]
[1761062938215,0.17641351,113370.0,113360.0,0.09246459]
[1761062938429,0.17641351,113370.0,113360.0,0.26889366]
[1761062938671,0.21259579,113370.0,113360.0,0.11648558]
[1761062939144,0.21259579,113370.0,113360.0,0.29291465]
[1761062939303,0.21259579,113370.0,113360.0,0.11648558]
[1761062939520,0.21259579,113370.0,113360.0,0.29291465]
[1761062939712,0.21259579,113370.0,113360.0,0.11648558]
[1761062940111,0.91689229,113370.0,113360.0,0.00264558]
[1761062940316,1.25689229,113370.0,113360.0,0.00264558]
[1761062940712,1.37069229,113370.0,113360.0,0.00264558]
[1761062940913,1.4605113,113370.0,113360.0,0.00264558]
[1761062943713,1.47952736,113370.0,113360.0,0.00264558]
[1761062945302,1.47952736,113370.0,113360.0,1e-08]
[1761062946201,2.18382386,113370.0,113360.0,1e-08]
[1761062946412,0.55261135,113360.0,113350.0,1e-08]
[1761062946615,5.07003942,113360.0,113330.0,0.0002]
[1761062946819,1.25693898,113340.0,113330.0,0.0002]
[1761062947032,0.55265805,113330.0,113320.0,0.0002]
[1761062947231,1.46045356,113330.0,113320.0,0.0002]
[1761062947662,1.46057356,113330.0,113320.0,0.0002]
[1761062948149,1.46057356,113330.0,113320.0,0.00068421]
[1761062949198,1.42439128,113330.0,113320.0,0.00068421]
[1761062949412,1.46057356,113330.0,113320.0,0.00068421]
[1761062949847,1.34677356,113330.0,113320.0,0.00068421]
[1761062949984,0.75623706,113330.0,113320.0,0.00068421]
[1761062950187,0.18526687,113350.0,113320.0,0.17717556]
[1761062950411,0.29905052,113360.0,113330.0,0.1941178]
[1761062950589,0.88074166,113350.0,113330.0,0.1941178]
[1761062950793,0.88074166,113350.0,113320.0,0.26699457]
[1761062950998,0.7042965,113340.0,113330.0,0.17647521]
[1761062951227,0.1764602,113340.0,113320.0,0.26699457]
[1761062951429,0.88077227,113330.0,113320.0,0.00068421]
[1761062951628,0.91695455,113330.0,113320.0,0.00068421]
[1761062951830,1.25695455,113330.0,113320.0,0.00068421]
[1761062952327,0.55265805,113330.0,113320.0,0.00068421]
[1761062952505,0.55265805,113330.0,113320.0,0.17717556]
[1761062952708,0.55265805,113330.0,113320.0,0.00200143]
[1761062953312,1.25695455,113330.0,113320.0,0.00200143]
[1761062953897,0.55265805,113330.0,113320.0,0.00200143]
[1761062954305,1.25695455,113330.0,113320.0,0.00200143]
[1761062954706,0.55265805,113330.0,113320.0,0.00200143]
[1761062954908,1.25695455,113330.0,113320.0,0.00200143]
[1761062955540,1.34677356,113330.0,113320.0,0.00200143]
[1761062956574,1.37071455,113330.0,113320.0,0.00200143]
[1761062957053,0.55265805,113330.0,113320.0,0.00200143]
[1761062957261,1.25695455,113330.0,113320.0,0.00200143]
[1761062957667,1.34677356,113330.0,113320.0,0.00200143]
[1761062959440,0.64247706,113330.0,113320.0,0.00200143]
[1761062959640,1.34677356,113330.0,113320.0,0.00200143]
[1761062961757,1.08435128,113330.0,113320.0,0.00200143]
[1761062962003,1.42435128,113330.0,113320.0,0.00200143]
[1761062962196,0.38005478,113330.0,113320.0,0.00200143]
[1761062962405,0.17647577,113330.0,113320.0,0.00200143]
[1761062962574,0.1764602,113340.0,113320.0,0.17849278]
[1761062962796,1.22177238,113330.0,113320.0,0.00068421]
[1761062963047,1.22077227,113330.0,113320.0,0.00068421]
[1761062963293,1.31059128,113330.0,113320.0,0.00068421]
[1761062964361,0.51647577,113330.0,113320.0,0.00068421]
[1761062964602,0.63023577,113330.0,113320.0,0.00068421]
[1761062964816,1.31439895,113330.0,113320.0,0.00068421]
[1761062965034,1.35058123,113330.0,113320.0,0.00068421]
[1761062965229,1.23682123,113330.0,113320.0,0.00068421]
[1761062969461,0.55265805,113330.0,113320.0,0.00068421]
[1761062969696,1.23682123,113330.0,113320.0,0.00068421]
[1761062970305,1.23682123,113330.0,113320.0,0.00200143]
[1761062971400,1.35054123,113330.0,113320.0,0.00200143]
[1761062971739,1.36956611,113330.0,113320.0,0.15080143]
[1761062973267,0.68540293,113330.0,113320.0,0.00200143]
[1761062973483,0.00353817,113340.0,113330.0,0.17647577]
[1761062973696,0.00353817,113340.0,113330.0,0.37997478]
[1761062974174,0.00353817,113340.0,113330.0,1.06413796]
[1761062974808,0.00353817,113340.0,113330.0,0.37997478]
[1761062975157,0.00353817,113340.0,113330.0,0.26629478]
[1761062975353,0.00353817,113340.0,113330.0,1.06425796]
[1761062975800,0.00353817,113340.0,113330.0,0.38009478]
[1761062976073,0.00353817,113340.0,113330.0,1.06425796]
[1761062976248,0.00353817,113340.0,113330.0,0.38009478]
[1761062977065,0.68770135,113340.0,113330.0,0.26629478]
[1761062977324,0.86416155,113340.0,113320.0,0.17717382]
[1761062977546,0.68770135,113340.0,113330.0,0.29027577]
[1761062977685,0.00353817,113340.0,113330.0,0.38009478]
[1761062978976,0.17999837,113340.0,113330.0,0.38108261]
[1761062979176,0.17999837,113340.0,113330.0,0.43690825]
[1761062979582,0.00353817,113340.0,113330.0,0.43690825]
[1761062980706,0.06,113350.0,113340.0,0.1764602]
[1761062980909,0.06,113350.0,113340.0,0.26627921]
[1761062982086,0.74416318,113350.0,113340.0,0.26627921]
[1761062982325,0.74416318,113350.0,113340.0,0.30027259]
[1761062982528,0.27262692,113350.0,113340.0,0.11372]
[1761062982835,0.9567901,113350.0,113340.0,0.11372]
[1761062983310,0.74416318,113350.0,113340.0,0.30782622]
[1761062983518,0.1764602,113340.0,113330.0,0.17647577]
[1761062983751,0.89780577,113340.0,113330.0,0.15111511]
[1761062983979,0.89680566,113340.0,113330.0,0.15111511]
[1761062985349,0.89680566,113340.0,113330.0,0.32759088]
[1761062985584,0.06,113350.0,113330.0,0.32759088]
[1761062985792,0.1764602,113340.0,113330.0,0.15111511]
[1761062986002,0.86062338,113340.0,113330.0,0.34523845]
[1761062986213,0.92060833,113350.0,113330.0,0.32759088]
[1761062986461,0.1764602,113340.0,113330.0,0.32759088]
[1761062986675,0.23644464,113350.0,113340.0,0.1764602]
[1761062986900,0.23644464,113350.0,113340.0,0.24669013]
[1761062987130,0.23644464,113350.0,113340.0,0.22904411]
[1761062987638,0.06,113350.0,113340.0,0.22904411]
[1761062987870,0.23644464,113350.0,113340.0,0.22904411]
[1761062988304,0.23644464,113350.0,113340.0,0.34288411]
[1761062990492,0.23644464,113350.0,113340.0,0.05258391]
[1761062990732,0.17647426,113340.0,113320.0,0.17717287]
[1761062990966,0.86063744,113340.0,113320.0,0.26699188]
[1761062991219,0.17647426,113340.0,113330.0,0.29023577]
[1761062991430,0.1764602,113340.0,113330.0,0.29023577]
[1761062992238,0.1764602,113340.0,113330.0,0.34595853]
[1761062992387,0.92943005,113350.0,113330.0,0.34595853]
[1761062992591,0.24526687,113350.0,113330.0,0.34694636]
[1761062992795,0.1764602,113340.0,113330.0,0.34595853]
[1761062993319,0.1764602,113340.0,113330.0,0.16948276]
[1761062993530,0.1764602,113340.0,113330.0,0.34595853]
[1761062994073,0.24526687,113350.0,113330.0,0.43577754]
[1761062994286,0.24526687,113350.0,113340.0,0.19410622]
[1761062994488,0.24526687,113350.0,113340.0,0.05174228]
[1761062994693,0.23644464,113350.0,113340.0,0.22820248]
[1761062994894,0.23644464,113350.0,113340.0,0.21055646]
[1761062995379,0.06,113350.0,113340.0,0.30037547]
[1761062995587,0.06,113350.0,113340.0,0.28537547]
[1761062998173,0.06,113350.0,113340.0,0.28603397]
[1761062999365,0.06,113350.0,113340.0,1.31019715]
[1761062999771,0.17642972,113400.0,113380.0,0.17639528]
[1761063000000,0.17638239,113390.0,113380.0,0.17639528]
[1761063000203,0.17642972,113400.0,113380.0,0.28995528]
[1761063000424,0.17638239,113390.0,113380.0,0.28995189]
[1761063001262,0.86059002,113400.0,113380.0,0.28995189]
[1761063001461,0.17638239,113390.0,113380.0,0.11356]
[1761063001672,0.51642684,113400.0,113380.0,0.30729562]
[1761063001879,6e-05,113400.0,113390.0,0.17638239]
[1761063002090,6e-05,113400.0,113390.0,0.2662014]
[1761063002284,6e-05,113400.0,113390.0,0.08981901]
[1761063002526,6e-05,113400.0,113390.0,0.95036458]
[1761063003206,0.17642684,113400.0,113390.0,0.08981901]
[1761063003364,0.17642684,113400.0,113390.0,0.20337901]
[1761063003564,6e-05,113400.0,113390.0,0.3797614]
[1761063005428,6e-05,113400.0,113390.0,1.06392458]
[1761063005829,6e-05,113400.0,113390.0,1.41392457]
[1761063006034,6e-05,113400.0,113390.0,2.13603722]
[1761063006233,6e-05,113400.0,113390.0,5.13603722]
[1761063006595,6e-05,113400.0,113390.0,5.1722195]
[1761063006770,6e-05,113400.0,113390.0,5.18221949]
[1761063007324,6e-05,113400.0,113390.0,5.1722195]
[1761063007933,6e-05,113400.0,113390.0,5.14427002]
[1761063008335,6e-05,113400.0,113390.0,5.15427001]
[1761063009589,6e-05,113400.0,113390.0,5.22148629]
[1761063009758,0.0004,113460.0,113450.0,0.51628911]
[1761063009929,0.00054589,113460.0,113450.0,1.41387129]
[1761063010413,0.00054589,113460.0,113450.0,1.37626672]
[1761063010619,0.00516816,113490.0,113480.0,0.1762425]
[1761063010819,0.00516816,113490.0,113480.0,0.39732576]
[1761063011019,0.00516816,113490.0,113480.0,0.37970151]
[1761063011233,0.00516816,113490.0,113480.0,1.07253489]
[1761063011456,0.0189866,113490.0,113480.0,0.38837171]
[1761063012091,0.0189866,113490.0,113480.0,0.27473171]
[1761063012291,0.0189866,113490.0,113480.0,0.38837171]
[1761063012498,0.0189866,113490.0,113480.0,1.07253489]
[1761063012704,0.0189866,113490.0,113480.0,0.38837171]
[1761063013128,0.0189866,113490.0,113480.0,0.4127478]
[1761063013332,0.00516816,113490.0,113480.0,0.41271563]
[1761063013534,0.00516816,113490.0,113480.0,1.09687881]
[1761063014750,0.00516816,113490.0,113480.0,1.4468788]
[1761063014957,0.00516816,113490.0,113480.0,1.43875344]
[1761063015156,0.00516816,113490.0,113480.0,1.45094275]
[1761063015378,0.00516816,113490.0,113480.0,1.42253488]
[1761063015583,0.0050452,113490.0,113480.0,1.42245488]
[1761063016379,0.0050452,113490.0,113480.0,4.45086275]
[1761063016580,0.0050452,113490.0,113480.0,4.42245488]
[1761063016786,0.0050452,113490.0,113480.0,1.42245488]
[1761063017013,0.0050452,113490.0,113480.0,1.29889489]
[1761063017217,0.0050452,113490.0,113480.0,1.43053591]
[1761063017423,0.0050452,113490.0,113480.0,1.42245488]
[1761063018048,1e-08,113490.0,113480.0,4.42245488]
[1761063018252,1e-08,113490.0,113480.0,4.43245487]
[1761063018655,1e-08,113490.0,113480.0,4.42245488]
[1761063018856,1e-08,113490.0,113480.0,4.43245487]
[1761063019205,1e-08,113490.0,113480.0,4.46086274]
[1761063019791,1e-08,113490.0,113480.0,4.43245487]
[1761063020198,1e-08,113490.0,113480.0,1.45167235]
[1761063020398,1e-08,113490.0,113480.0,1.31889487]
[1761063020600,1e-08,113490.0,113480.0,1.42249488]
[1761063020817,1e-08,113490.0,113480.0,1.43249487]
[1761063020980,1e-08,113490.0,113480.0,1.42249488]
[1761063021302,1e-08,113490.0,113480.0,1.43249487]
[1761063021723,1e-08,113490.0,113480.0,4.43249487]
[1761063021928,1e-08,113490.0,113480.0,1.42249488]
[1761063022110,1e-08,113490.0,113480.0,1.43249487]
[1761063022316,1e-08,113490.0,113480.0,1.30889488]
[1761063022580,1e-08,113490.0,113480.0,0.27473171]
[1761063022770,1e-08,113490.0,113480.0,0.38841171]
[1761063023099,1e-08,113490.0,113480.0,0.09848921]
[1761063023313,0.86039017,113490.0,113480.0,0.08981901]
[1761063023517,0.17622699,113490.0,113480.0,0.37978151]
[1761063024545,0.17622699,113490.0,113480.0,0.11372]
[1761063024740,0.18507622,113480.0,113470.0,0.11368]
[1761063025116,0.17622699,113490.0,113470.0,0.28993804]
[1761063025258,0.1772271,113490.0,113470.0,0.28993804]
[1761063025549,0.1762425,113480.0,113470.0,0.28993804]
[1761063025758,1e-08,113490.0,113480.0,0.1762425]
[1761063025894,1e-08,113490.0,113480.0,0.26606151]
[1761063028565,1e-08,113490.0,113480.0,0.26706151]
[1761063029299,1e-08,113490.0,113480.0,0.27516132]
[1761063030454,1e-08,113490.0,113480.0,1.11980631]
[1761063030665,1e-08,113490.0,113480.0,1.1117065]
[1761063030868,1e-08,113490.0,113480.0,1.4517065]
[1761063031115,1e-08,113490.0,113480.0,1.46170649]
[1761063031324,1e-08,113490.0,113480.0,0.72066151]
[1761063031493,1e-08,113490.0,113480.0,1.5653065]
[1761063032535,1e-08,113490.0,113480.0,0.26706151]
[1761063032749,1e-08,113490.0,113480.0,0.37962151]
[1761063033166,1e-08,113490.0,113480.0,0.38062151]
[1761063034851,0.17622699,113490.0,113480.0,0.09894278]
[1761063035086,0.17622699,113490.0,113480.0,0.12268377]
[1761063035293,1e-08,113490.0,113480.0,0.29892627]
[1761063035707,0.20272151,113490.0,113480.0,0.12268377]
[1761063035915,0.20272151,113490.0,113480.0,0.29792627]
[1761063036535,0.20272151,113490.0,113480.0,0.12168377]
[1761063036740,0.20272151,113490.0,113480.0,0.12268377]
[1761063037881,0.20272151,113490.0,113480.0,0.29892627]
[1761063038524,0.02649453,113490.0,113480.0,0.29892627]
[1761063038730,0.20372162,113490.0,113480.0,0.12268377]
[1761063038899,0.20272151,113490.0,113480.0,0.12268377]
[1761063040737,0.20272151,113490.0,113480.0,0.31655052]
[1761063040946,0.02649453,113490.0,113480.0,0.29892627]
[1761063041179,0.20272151,113490.0,113480.0,0.29892627]
[1761063041684,0.20272151,113490.0,113480.0,0.12268377]
[1761063042543,0.1762425,113480.0,113470.0,0.15676979]
[1761063042742,0.1762425,113480.0,113470.0,0.2465888]
[1761063042988,0.20272151,113490.0,113470.0,0.2465888]
[1761063043211,0.04548178,113490.0,113480.0,0.28368576]
[1761063043418,0.04548178,113490.0,113480.0,0.26606151]
[1761063043419,0.20272151,113490.0,113480.0,0.26606151]
[1761063044047,0.20272151,113490.0,113480.0,0.08981901]
[1761063045167,0.1762425,113480.0,113470.0,0.28977532]
[1761063045389,0.20272151,113490.0,113480.0,0.001]
[1761063048744,0.2217065,113490.0,113480.0,0.001]
[1761063051570,0.22171923,113490.0,113480.0,0.001]
[1761063052005,1.17964422,113490.0,113480.0,0.001]
[1761063052317,1.69928224,113490.0,113480.0,0.001]
[1761063052528,1.58600224,113490.0,113480.0,0.001]
[1761063052739,1.60958323,113490.0,113480.0,0.001]
[1761063052948,1.64107664,113490.0,113480.0,0.001]
[1761063053375,0.17628093,113460.0,113450.0,0.1762887]
[1761063053587,0.17628093,113460.0,113450.0,0.14894589]
[1761063054000,0.1134,113470.0,113460.0,0.17627357]
[1761063054180,0.29065901,113470.0,113450.0,0.325235]
[1761063054372,0.20277441,113460.0,113450.0,0.325235]
[1761063055759,0.02650084,113460.0,113450.0,0.325235]
[1761063057011,0.02650084,113460.0,113450.0,0.41505401]
[1761063057215,0.02650084,113460.0,113450.0,0.26625401]
[1761063057453,0.20277441,113460.0,113450.0,0.26625401]
[1761063057658,0.02650084,113460.0,113450.0,0.176435]
[1761063059878,0.02650084,113460.0,113450.0,0.19406391]
[1761063060064,0.02650084,113460.0,113450.0,0.28388292]
[1761063060267,0.02650084,113460.0,113450.0,0.26625401]
[1761063060516,1e-08,113490.0,113480.0,0.1762425]
[1761063060751,1e-08,113490.0,113480.0,0.19386675]
[1761063060953,0.13981589,113490.0,113480.0,0.19386675]
[1761063061159,0.33502591,113490.0,113480.0,0.19386675]
[1761063061352,0.33502591,113490.0,113470.0,0.17624412]
[1761063061493,0.33502591,113490.0,113480.0,0.1762425]
[1761063061695,0.19521003,113490.0,113480.0,0.19386675]
[1761063061897,0.30853003,113490.0,113480.0,0.19386675]
[1761063062245,0.30853003,113490.0,113460.0,0.11332]
[1761063062246,0.17625641,113480.0,113460.0,0.11332]
[1761063062459,0.19623956,113480.0,113470.0,0.17625804]
[1761063062596,0.19523945,113480.0,113470.0,0.17625804]
[1761063062813,0.04548053,113480.0,113470.0,0.17625804]
[1761063063013,0.0274976,113480.0,113470.0,0.17625804]
[1761063063248,0.2037401,113480.0,113470.0,0.19388384]
[1761063063435,0.02649749,113480.0,113470.0,0.19388384]
[1761063063839,0.02649749,113480.0,113470.0,0.34268384]
[1761063064038,0.02649749,113480.0,113470.0,0.41487705]
[1761063064405,1e-08,113490.0,113480.0,0.1762425]
[1761063064629,0.00100012,113490.0,113480.0,0.1762425]
[1761063064831,0.1772271,113490.0,113480.0,0.1762425]
[1761063065023,0.1762425,113480.0,113470.0,0.23861901]
[1761063065250,0.17622699,113490.0,113480.0,0.1762425]
[1761063065446,0.19623625,113490.0,113480.0,0.1762425]
[1761063065650,1e-08,113490.0,113480.0,0.1762425]
[1761063065904,0.1772271,113490.0,113480.0,0.1762425]
[1761063066595,0.00100012,113490.0,113480.0,0.1762425]
[1761063066796,0.00100012,113490.0,113480.0,1.24165075]
[1761063066797,1e-08,113490.0,113480.0,1.24165075]
[1761063067010,1e-08,113490.0,113480.0,1.2240265]
[1761063067216,1e-08,113490.0,113480.0,1.5640265]
[1761063068206,1e-08,113490.0,113480.0,1.57402649]
[1761063068424,1e-08,113490.0,113480.0,4.61324395]
[1761063068979,1e-08,113490.0,113480.0,3.7945943]
[1761063069113,1e-08,113490.0,113480.0,4.61324395]
[1761063069316,1e-08,113490.0,113480.0,4.62210378]
[1761063069521,1e-08,113490.0,113480.0,4.62310378]
[1761063069723,1e-08,113490.0,113480.0,4.59288631]
[1761063069947,1e-08,113490.0,113480.0,4.58288632]
[1761063070180,1e-08,113490.0,113480.0,4.58488632]
[1761063070474,1e-08,113490.0,113480.0,1.57488633]
[1761063070679,1e-08,113490.0,113480.0,1.12156633]
[1761063070932,1e-08,113490.0,113480.0,1.23284633]
[1761063071113,1e-08,113490.0,113480.0,1.57284633]
[1761063072097,1e-08,113490.0,113480.0,0.73020134]
[1761063072299,1e-08,113490.0,113480.0,1.57484633]
[1761063073120,1e-08,113490.0,113480.0,1.58484632]
[1761063075760,0.17629099,113530.0,113520.0,0.1761804]
[1761063075987,0.17629099,113530.0,113520.0,0.43786039]
[1761063076899,0.17677712,113530.0,113520.0,0.43786039]
[1761063080348,0.00061223,113530.0,113520.0,0.43786039]
[1761063080719,0.17677712,113530.0,113520.0,0.43786039]
[1761063081446,0.17809109,113530.0,113520.0,0.43786039]
[1761063082982,0.17809109,113530.0,113520.0,0.26167999]
[1761063083114,0.17809109,113530.0,113520.0,0.43786039]
[1761063084831,0.0019262,113530.0,113520.0,0.43786039]
[1761063085227,0.17809109,113530.0,113520.0,0.43786039]
[1761063086605,0.0019262,113530.0,113520.0,0.5276794]
[1761063086772,0.17809109,113530.0,113520.0,0.351499]
[1761063086978,0.17809109,113530.0,113520.0,0.5276794]
[1761063088774,0.17809109,113530.0,113520.0,0.26167999]
[1761063088984,0.8596258,113530.0,113520.0,0.14839999]
[1761063089377,0.17619119,113520.0,113500.0,0.29826019]
[1761063089628,0.17619119,113520.0,113500.0,0.3880792]
[1761063089845,0.17685302,113510.0,113500.0,0.3880792]
[1761063090825,0.17685302,113510.0,113500.0,0.3890792]
[1761063092001,0.0006571,113510.0,113500.0,0.3890792]
[1761063092277,0.0006571,113510.0,113500.0,0.3880792]
[1761063092482,0.0006571,113510.0,113500.0,1.07061391]
[1761063095314,0.0006571,113510.0,113500.0,2.09214862]
[1761063095315,1e-08,113510.0,113500.0,2.09214862]
[1761063095507,1e-08,113510.0,113500.0,2.10214861]
[1761063096186,1e-08,113510.0,113500.0,2.10114861]
[1761063096357,1e-08,113510.0,113500.0,2.10314861]
[1761063096776,1e-08,113510.0,113500.0,1.4196139]